[Event "Swiss Championship U10 2022"]
[Site "Biel"]
[Date "2022.07.18"]
[Round "2.1"]
[White "Saminskij, Jan"]
[Black "Bhingare, Joshua"]
[Result "1-0"]
[ECO "B13"]
[WhiteElo "1487"]
[BlackElo "1342"]
[Annotator "NA COMBH"]
[PlyCount "119"]
[EventDate "2022.07.18"]
[EventType "swiss"]
[EventCountry "SUI"]
[SourceTitle "playchess.com"]
[Source "ChessBase"]
[SourceQuality "1"]
[TimeControl "5400+30"]

1. Nf3 {[%emt 0:01:08]} d5 {[%emt 0:00:52]} 2. d4 {[%emt 0:00:21]} c5 {[%emt 0:00:00]} 3. e3 {[%emt 0:01:48]} cxd4 {[%emt 0:00:51]} 4. exd4 {[%emt 0:00:00]} Nc6 {[%emt 0:01:17]} 5. c3 {[%emt 0:01:38]} Nf6 {[%emt 0:01:33]} 6. g3 {[%emt 0:01:16]} Bf5 {[%emt 0:00:03]} 7. Bg2 {[%emt 0:01:10]} e6 {[%emt 0:00:48]} 8. O-O {[%emt 0:02:49]} Bd6 {[%emt 0:05:00]} 9. Bg5 {[%emt 0:00:53]} h6 {[%emt 0:00:37]} 10. Bxf6 {[%emt 0:02:08]} Qxf6 {[%emt 0:03:42]} 11. Qe2 {[%emt 0:05:26]} Bg4 {[%emt 0:03:02]} 12. Nbd2 {[%emt 0:02:32]} O-O {[%emt 0:01:22]} 13. h3 {[%emt 0:01:12]} Bf5 {[%emt 0:08:53]} 14. Rae1 {[%emt 0:00:44]} Qg6 {[%emt 0:03:21]} 15. Nh4 {[%emt 0:00:37]} Qh7 {[%emt 0:01:05]} 16. Nxf5 {[%emt 0:12:25]} Qxf5 {[%emt 0:04:30]} 17. f4 {[%emt 0:01:40]} Rae8 {[%emt 0:05:02]} 18. Nf3 {[%emt 0:07:43]} Qg6 {[%emt 0:03:18]} 19. Qf2 {[%emt 0:00:10]} f6 {[%emt 0:00:00]} 20. Nh4 {[%emt 0:00:35]} Qf7 {[%emt 0:09:40]} 21. f5 {[%emt 0:00:56]} e5 {[%emt 0:00:48]} 22. Ng6 {[%emt 0:13:54]} Qc7 23. Nxf8 {[%emt 0:02:16]} Rxf8 {[%emt 0:00:00]} 24. Bxd5+ {[%emt 0:00:00]} Kh8 {[%emt 0:01:56]} 25. Kg2 {[%emt 0:00:01]} exd4 {[%emt 0:01:53]} 26. cxd4 {[%emt 0:00:30]} Nb4 {[%emt 0:02:36]} 27. Be4 {[%emt 0:01:12]} Re8 {[%emt 0:01:19]} 28. a3 {[%emt 0:00:30]} Nc6 {[%emt 0:01:00]} 29. Bf3 {[%emt 0:00:09]} Rxe1 {[%emt 0:00:00]} 30. Rxe1 {[%emt 0:00:29]} Ne7 {[%emt 0:02:31]} 31. Bh5 {[%emt 0:00:40]} Qc6+ {[%emt 0:00:12]} 32. Qf3 {[%emt 0:05:54]} Qc2+ {[%emt 0:04:41]} 33. Re2 {[%emt 0:00:11]} Qxf5 {[%emt 0:00:35]} 34. Qxf5 {[%emt 0:00:14]} Nxf5 {[%emt 0:00:17]} 35. Bg6 {[%emt 0:04:47]} Ne7 {[%emt 0:01:51]} 36. Bd3 {[%emt 0:00:30]} Kg8 {[%emt 0:01:01]} 37. Re6 {[%emt 0:03:02]} Bxa3 {[%emt 0:00:28]} 38. bxa3 {[%emt 0:00:00]} Nc6 {[%emt 0:00:00]} 39. Rxc6 {[%emt 0:00:11]} bxc6 {[%emt 0:00:00]} 40. Be4 {[%emt 0:00:14]} Kf8 {[%emt 0:00:00]} 41. Bxc6 {[%emt 0:00:00]} Ke7 {[%emt 0:00:06]} 42. d5 {[%emt 0:00:00]} g5 {[%emt 0:00:00]} 43. Kf3 {[%emt 0:00:10]} Kd6 {[%emt 0:00:17]} 44. Kg4 {[%emt 0:01:01]} Ke5 {[%emt 0:03:45]} 45. Kf3 {[%emt 0:01:14]} a5 {[%emt 0:00:20]} 46. a4 {[%emt 0:00:22]} f5 {[%emt 0:01:20]} 47. Ke3 {[%emt 0:01:11]} h5 {[%emt 0:00:43]} 48. h4 {[%emt 0:00:12]} f4+ {[%emt 0:00:04]} 49. gxf4+ {[%emt 0:00:12]} gxf4+ {[%emt 0:00:15]} 50. Kf3 {[%emt 0:02:30]} Kf5 {[%emt 0:00:00]} 51. d6 {[%emt 0:00:11]} Ke6 {[%emt 0:00:00]} 52. d7 {[%emt 0:00:12]} Ke7 {[%emt 0:00:00]} 53. Kxf4 {[%emt 0:00:03]} Kd8 {[%emt 0:00:00]} 54. Ke5 {[%emt 0:00:18]} Kc7 {[%emt 0:00:00]} 55. Ke6 {[%emt 0:00:03]} Kd8 {[%emt 0:01:00]} 56. Bf3 {[%emt 0:01:04]} Kc7 {[%emt 0:00:00]} 57. Ke7 {[%emt 0:00:31]} Kb8 {[%emt 0:00:00]} 58. d8=Q+ {[%emt 0:00:00]} Ka7 {[%emt 0:00:00]} 59. Qc7+ {[%emt 0:00:00]} Ka6 {[%emt 0:00:00]} 60. Qb7# {[%emt 0:00:50]} 1-0

[Event "Swiss Championship U10 2022"]
[Site "Biel"]
[Date "2022.07.18"]
[Round "2.2"]
[White "Jordan, Christina"]
[Black "Chockalingam, Vishak"]
[Result "1/2-1/2"]
[ECO "B11"]
[WhiteElo "1367"]
[BlackElo "1285"]
[Annotator "NA RC COMBH"]
[PlyCount "80"]
[EventDate "2022.07.18"]
[EventType "swiss"]
[EventCountry "SUI"]
[SourceTitle "playchess.com"]
[Source "ChessBase"]
[SourceQuality "1"]
[TimeControl "5400+30"]

1. e4 {[%emt 0:00:10]} c6 {[%emt 0:00:12]} 2. Nc3 {[%emt 0:00:18]} d5 {[%emt 0:00:06]} 3. Nf3 {[%emt 0:00:12]} Bg4 {[%emt 0:00:53]} 4. h3 {[%emt 0:00:32]} Bxf3 {[%emt 0:00:04]} 5. Qxf3 {[%emt 0:00:20]} e6 {[%emt 0:00:43]} 6. Be2 {[%emt 0:01:39]} Nd7 {[%emt 0:01:41]} 7. d3 {[%emt 0:03:38]} Bb4 {[%emt 0:02:50]} 8. Bd2 {[%emt 0:01:29]} Ngf6 {[%emt 0:01:10]} 9. O-O {[%emt 0:05:23]} d4 {[%emt 0:00:10]} 10. Nb1 {[%emt 0:00:44]} Bxd2 {[%emt 0:05:57]} 11. Nxd2 {[%emt 0:02:01]} Qc7 {[%emt 0:01:44]} 12. c3 {[%emt 0:02:00]} dxc3 {[%emt 0:02:41]} 13. bxc3 {[%emt 0:00:06]} O-O {[%emt 0:01:40]} 14. d4 {[%emt 0:02:14]} c5 {[%emt 0:03:10]} 15. Rfc1 {[%emt 0:06:54]} Rac8 {[%emt 0:03:44]} 16. Bd3 {[%emt 0:05:13]} h6 {[%emt 0:03:26]} 17. Rab1 {[%emt 0:07:18]} Nb6 {[%emt 0:06:33]} 18. Nc4 {[%emt 0:07:55]} Nxc4 {[%emt 0:00:16]} 19. Bxc4 {[%emt 0:04:52]} cxd4 {[%emt 0:00:18]} 20. cxd4 {[%emt 0:00:42]} Qd7 {[%emt 0:05:09]} 21. d5 {[%emt 0:02:13]} exd5 {[%emt 0:00:52]} 22. exd5 {[%emt 0:03:50]} a6 {[%emt 0:03:16]} 23. Bb3 {[%emt 0:02:26]} b5 {[%emt 0:08:47]} 24. Qd3 {[%emt 0:02:57]} Rxc1+ {[%emt 0:02:27]} 25. Rxc1 {[%emt 0:00:52]} Rc8 {[%emt 0:01:12]} 26. Rxc8+ {[%emt 0:00:00]} Qxc8 {[%emt 0:08:34]} 27. d6 {[%emt 0:01:42]} Qd7 {[%emt 0:02:19]} 28. Bc2 {[%emt 0:06:20]} g6 {[%emt 0:02:14]} 29. Qa3 {[%emt 0:09:18]} Ne8 {[%emt 0:00:13]} 30. Qxa6 {[%emt 0:02:10]} Nxd6 {[%emt 0:09:05]} 31. a4 {[%emt 0:02:18]} bxa4 {[%emt 0:00:43]} 32. Bxa4 {[%emt 0:00:31]} Qe7 {[%emt 0:01:12]} 33. Qa8+ {[%emt 0:00:00]} Kg7 {[%emt 0:00:33]} 34. Qf3 {[%emt 0:03:29]} Qe5 {[%emt 0:00:56]} 35. Bb3 {[%emt 0:04:10]} Qa1+ {[%emt 0:00:13]} 36. Kh2 {[%emt 0:00:21]} Qe5+ {[%emt 0:00:51]} 37. g3 {[%emt 0:01:12]} h5 {[%emt 0:00:23]} 38. h4 {[%emt 0:01:22]} Qf6 {[%emt 0:02:42]} 39. Kg2 {[%emt 0:01:43]} Qxf3+ {[%emt 0:00:08]} 40. Kxf3 {[%emt 0:00:22]} f6 {[%emt 0:00:04]} 1/2-1/2

[Event "Swiss Championship U10 2022"]
[Site "Biel"]
[Date "2022.07.18"]
[Round "2.3"]
[White "Domschke, Mischa"]
[Black "Gong, Yansheng"]
[Result "1-0"]
[ECO "C54"]
[WhiteElo "1565"]
[BlackElo "1285"]
[Annotator "NA COMBH"]
[PlyCount "49"]
[EventDate "2022.07.18"]
[EventType "swiss"]
[EventCountry "SUI"]
[SourceTitle "playchess.com"]
[Source "ChessBase"]
[SourceQuality "1"]
[TimeControl "5400+30"]

1. e4 {[%emt 0:00:13]} e5 {[%emt 0:00:09]} 2. Nf3 {[%emt 0:00:03]} Nc6 {[%emt 0:00:09]} 3. Bc4 {[%emt 0:00:04]} Bc5 {[%emt 0:00:13]} 4. d3 {[%emt 0:00:07]} Nf6 {[%emt 0:00:10]} 5. O-O {[%emt 0:00:04]} d6 {[%emt 0:00:14]} 6. c3 {[%emt 0:00:16]} Bg4 {[%emt 0:00:43]} 7. Be3 {[%emt 0:00:23]} Qd7 {[%emt 0:00:43]} 8. Nbd2 {[%emt 0:00:20]} Nh5 {[%emt 0:02:21]} 9. h3 {[%emt 0:00:38]} Bxh3 {[%emt 0:00:17]} 10. gxh3 {[%emt 0:00:09]} Qxh3 {[%emt 0:00:07]} 11. Ng5 {[%emt 0:00:28]} Qh4 {[%emt 0:01:11]} 12. Bxf7+ {[%emt 0:00:22]} Kd7 {[%emt 0:00:51]} 13. Qxh5 {[%emt 0:00:16]} Qxh5 {[%emt 0:01:15]} 14. Bxh5 {[%emt 0:00:10]} g6 {[%emt 0:05:16]} 15. Bg4+ {[%emt 0:00:10]} Ke7 {[%emt 0:00:47]} 16. Bxc5 {[%emt 0:00:30]} dxc5 {[%emt 0:00:17]} 17. Nc4 {[%emt 0:01:05]} b5 {[%emt 0:01:38]} 18. Ne3 {[%emt 0:00:11]} Raf8 {[%emt 0:03:18]} 19. Nd5+ {[%emt 0:00:12]} Kd6 {[%emt 0:00:54]} 20. Ne6 {[%emt 0:00:26]} Rf7 {[%emt 0:00:57]} 21. Nexc7 {[%emt 0:01:02]} Rb8 {[%emt 0:01:47]} 22. Be6 {[%emt 0:00:08]} Rf3 {[%emt 0:07:05]} 23. Rfd1 {[%emt 0:01:05]} Rbf8 {[%emt 0:00:38]} 24. Bg4 {[%emt 0:00:36]} R3f4 {[%emt 0:03:01]} 25. Nxb5# {[%emt 0:00:14]} 1-0

[Event "Swiss Championship U10 2022"]
[Site "Biel"]
[Date "2022.07.18"]
[Round "2.4"]
[White "Kumar, Shreyank"]
[Black "Pahud, Kylian"]
[Result "1-0"]
[ECO "C53"]
[WhiteElo "1404"]
[BlackElo "1373"]
[Annotator "NA COMBH"]
[PlyCount "145"]
[EventDate "2022.07.18"]
[EventType "swiss"]
[EventCountry "SUI"]
[SourceTitle "playchess.com"]
[Source "ChessBase"]
[SourceQuality "1"]
[TimeControl "5400+30"]

1. e4 {[%emt 0:00:01]} e5 {[%emt 0:01:10]} 2. Nf3 {[%emt 0:00:05]} Nc6 {[%emt 0:00:23]} 3. Bc4 {[%emt 0:00:42]} Bc5 {[%emt 0:01:14]} 4. c3 {[%emt 0:00:00]} Bb6 {[%emt 0:01:22]} 5. d4 {[%emt 0:00:10]} exd4 {[%emt 0:00:51]} 6. cxd4 {[%emt 0:01:31]} Nge7 {[%emt 0:01:44]} 7. O-O {[%emt 0:00:00]} O-O {[%emt 0:01:48]} 8. d5 {[%emt 0:01:20]} Na5 {[%emt 0:00:00]} 9. Bd3 {[%emt 0:00:44]} d6 {[%emt 0:00:09]} 10. b4 {[%emt 0:00:33]} Bg4 {[%emt 0:00:36]} 11. bxa5 {[%emt 0:00:00]} Bd4 {[%emt 0:00:14]} 12. Nxd4 {[%emt 0:06:59]} Bxd1 {[%emt 0:02:26]} 13. Rxd1 {[%emt 0:00:06]} c5 {[%emt 0:00:52]} 14. Nb5 {[%emt 0:01:24]} a6 {[%emt 0:00:39]} 15. N5c3 {[%emt 0:01:48]} Qxa5 {[%emt 0:00:44]} 16. a3 {[%emt 0:05:36]} b5 {[%emt 0:03:03]} 17. Ra2 {[%emt 0:01:19]} c4 {[%emt 0:00:27]} 18. Bf1 {[%emt 0:02:13]} Qb6 {[%emt 0:05:38]} 19. Be3 {[%emt 0:00:00]} Qb7 {[%emt 0:00:56]} 20. Rb2 {[%emt 0:00:02]} Qd7 {[%emt 0:00:48]} 21. Nd2 {[%emt 0:00:31]} Rab8 {[%emt 0:01:12]} 22. Rdb1 {[%emt 0:00:19]} Rb7 {[%emt 0:00:48]} 23. Nxc4 {[%emt 0:05:01]} Rc8 {[%emt 0:02:05]} 24. Bd2 {[%emt 0:00:42]} Rbc7 {[%emt 0:00:40]} 25. Nb6 {[%emt 0:00:13]} Qg4 {[%emt 0:00:34]} 26. Nxc8 {[%emt 0:02:25]} Rxc8 {[%emt 0:01:28]} 27. h3 {[%emt 0:02:34]} Qd7 {[%emt 0:01:05]} 28. Be2 {[%emt 0:00:48]} Ng6 {[%emt 0:00:27]} 29. Bg4 {[%emt 0:00:10]} Qd8 {[%emt 0:01:35]} 30. Bxc8 {[%emt 0:00:07]} Qxc8 {[%emt 0:00:14]} 31. Rc1 {[%emt 0:01:08]} Qd8 {[%emt 0:00:36]} 32. Rbc2 {[%emt 0:00:48]} Qf6 {[%emt 0:01:01]} 33. Be1 {[%emt 0:01:24]} h6 {[%emt 0:00:56]} 34. Ne2 {[%emt 0:00:26]} Ne5 {[%emt 0:01:41]} 35. Bc3 {[%emt 0:00:42]} Qe7 {[%emt 0:00:27]} 36. Bxe5 {[%emt 0:00:40]} Qxe5 {[%emt 0:01:00]} 37. Ng3 {[%emt 0:00:07]} Kh7 {[%emt 0:01:21]} 38. Rc7 {[%emt 0:00:55]} Qb2 {[%emt 0:02:02]} 39. R7c3 {[%emt 0:00:41]} a5 {[%emt 0:01:24]} 40. Nf5 {[%emt 0:00:41]} b4 {[%emt 0:01:21]} 41. axb4 {[%emt 0:00:05]} axb4 {[%emt 0:00:03]} 42. R3c2 {[%emt 0:00:22]} Qe5 {[%emt 0:00:31]} 43. Re2 {[%emt 0:00:30]} g6 {[%emt 0:00:35]} 44. Ng3 {[%emt 0:00:08]} b3 {[%emt 0:01:16]} 45. Rb1 {[%emt 0:00:41]} Qc3 {[%emt 0:01:14]} 46. Reb2 {[%emt 0:00:15]} Qc4 {[%emt 0:00:54]} 47. Rxb3 {[%emt 0:00:09]} Kg7 {[%emt 0:01:04]} 48. Re3 {[%emt 0:01:37]} Qa2 {[%emt 0:01:03]} 49. Ree1 {[%emt 0:00:29]} Qa8 {[%emt 0:00:13]} 50. Rbd1 {[%emt 0:00:09]} f6 {[%emt 0:00:27]} 51. Rc1 {[%emt 0:01:05]} h5 {[%emt 0:01:27]} 52. Re2 {[%emt 0:00:38]} Qe8 {[%emt 0:03:35]} 53. h4 {[%emt 0:00:26]} Qa8 {[%emt 0:01:22]} 54. Rec2 {[%emt 0:00:13]} g5 {[%emt 0:01:21]} 55. Rc7+ {[%emt 0:00:36]} Kg6 {[%emt 0:01:22]} 56. Nf5 {[%emt 0:00:13]} Qf8 {[%emt 0:01:10]} 57. Rg7+ {[%emt 0:00:32]} Qxg7 {[%emt 0:00:08]} 58. Nxg7 {[%emt 0:00:05]} g4 {[%emt 0:00:15]} 59. Nf5 {[%emt 0:01:05]} g3 {[%emt 0:00:38]} 60. fxg3 {[%emt 0:00:21]} Kh7 {[%emt 0:00:31]} 61. Rc7+ {[%emt 0:00:00]} Kh8 {[%emt 0:01:11]} 62. Kf2 {[%emt 0:00:13]} Kg8 {[%emt 0:00:19]} 63. Re7 {[%emt 0:00:23]} Kf8 {[%emt 0:00:16]} 64. g4 {[%emt 0:00:07]} hxg4 {[%emt 0:00:36]} 65. Kg3 {[%emt 0:00:11]} Kg8 {[%emt 0:00:17]} 66. Kxg4 {[%emt 0:00:07]} Kf8 {[%emt 0:00:10]} 67. Kh5 {[%emt 0:00:09]} Kg8 {[%emt 0:00:12]} 68. Kg6 {[%emt 0:00:10]} Kf8 {[%emt 0:00:09]} 69. Kxf6 {[%emt 0:00:21]} Kg8 {[%emt 0:01:26]} 70. Rf7 {[%emt 0:02:43]} Kh8 {[%emt 0:00:20]} 71. Kg6 {[%emt 0:00:13]} Kg8 {[%emt 0:00:14]} 72. Nh6+ {[%emt 0:00:05]} Kh8 {[%emt 0:00:05]} 73. Rf8# {[%emt 0:00:09]} 1-0

[Event "Swiss Championship U10 2022"]
[Site "Biel"]
[Date "2022.07.18"]
[Round "2.5"]
[White "Parmelin, Axel"]
[Black "Bachmann, Elias"]
[Result "0-1"]
[ECO "C49"]
[WhiteElo "1298"]
[BlackElo "1319"]
[Annotator "NA COMBH"]
[PlyCount "82"]
[EventDate "2022.07.18"]
[EventType "swiss"]
[EventCountry "SUI"]
[SourceTitle "playchess.com"]
[Source "ChessBase"]
[SourceQuality "1"]
[TimeControl "5400+30"]

1. e4 {[%emt 0:00:03]} e5 {[%emt 0:00:07]} 2. Nf3 {[%emt 0:00:04]} Nc6 {[%emt 0:00:08]} 3. Nc3 {[%emt 0:00:14]} Nf6 {[%emt 0:00:10]} 4. Bb5 {[%emt 0:00:13]} Bb4 {[%emt 0:00:24]} 5. d3 {[%emt 0:01:21]} d6 {[%emt 0:00:00]} 6. O-O {[%emt 0:00:19]} O-O {[%emt 0:00:13]} 7. Bg5 {[%emt 0:00:08]} Bxc3 {[%emt 0:00:07]} 8. bxc3 {[%emt 0:01:54]} Qe7 {[%emt 0:00:39]} 9. d4 {[%emt 0:00:32]} a6 {[%emt 0:02:36]} 10. Ba4 {[%emt 0:02:23]} b5 {[%emt 0:02:49]} 11. Bb3 {[%emt 0:00:35]} Nb8 {[%emt 0:01:07]} 12. c4 {[%emt 0:00:00]} Nbd7 {[%emt 0:01:05]} 13. cxb5 {[%emt 0:00:00]} axb5 {[%emt 0:00:19]} 14. Qd3 {[%emt 0:01:05]} Bb7 {[%emt 0:04:51]} 15. d5 {[%emt 0:00:50]} Rfe8 {[%emt 0:01:22]} 16. Qxb5 {[%emt 0:00:24]} Ba6 {[%emt 0:00:17]} 17. Qc6 {[%emt 0:01:11]} Bxf1 {[%emt 0:00:32]} 18. Rxf1 {[%emt 0:00:09]} Qd8 {[%emt 0:01:35]} 19. Ba4 {[%emt 0:02:41]} Qc8 {[%emt 0:02:10]} 20. h3 {[%emt 0:00:29]} h6 {[%emt 0:02:03]} 21. Bh4 {[%emt 0:00:38]} Ra6 {[%emt 0:01:20]} 22. Qb5 {[%emt 0:00:25]} Rb6 {[%emt 0:01:05]} 23. Qe2 {[%emt 0:00:53]} Qa6 {[%emt 0:00:32]} 24. Qxa6 {[%emt 0:00:54]} Rxa6 {[%emt 0:00:08]} 25. Bb5 {[%emt 0:00:22]} Ra5 {[%emt 0:00:20]} 26. a4 {[%emt 0:07:54]} Rb8 {[%emt 0:09:07]} 27. c4 {[%emt 0:00:00]} Nc5 {[%emt 0:00:34]} 28. Rc1 {[%emt 0:00:00]} Nfxe4 {[%emt 0:00:18]} 29. Bc6 {[%emt 0:00:00]} Rb2 {[%emt 0:00:53]} 30. Bd8 {[%emt 0:00:00]} Ra7 {[%emt 0:02:15]} 31. Ra1 {[%emt 0:00:00]} Rxf2 {[%emt 0:01:23]} 32. a5 {[%emt 0:00:39]} Rc2 {[%emt 0:00:54]} 33. a6 {[%emt 0:00:00]} Rxa6 {[%emt 0:00:42]} 34. Rxa6 {[%emt 0:00:00]} Nxa6 {[%emt 0:00:09]} 35. Bb5 {[%emt 0:00:00]} Nec5 {[%emt 0:00:28]} 36. Ne1 {[%emt 0:00:45]} Rb2 {[%emt 0:00:40]} 37. Kf1 {[%emt 0:02:13]} f6 {[%emt 0:00:05]} 38. Nf3 {[%emt 0:01:25]} Kf7 {[%emt 0:00:41]} 39. Nh4 {[%emt 0:01:50]} g6 {[%emt 0:00:42]} 40. g4 {[%emt 0:00:17]} e4 {[%emt 0:00:37]} 41. Bd7 {[%emt 0:00:50]} Nxd7 {[%emt 0:00:15]} 0-1

[Event "Swiss Championship U10 2022"]
[Site "Biel"]
[Date "2022.07.18"]
[Round "2.6"]
[White "Rams, Vedha"]
[Black "Gregor, Elena"]
[Result "1-0"]
[ECO "C58"]
[WhiteElo "1312"]
[BlackElo "1258"]
[Annotator "NA COMBH"]
[PlyCount "119"]
[EventDate "2022.07.18"]
[EventType "swiss"]
[EventCountry "SUI"]
[SourceTitle "playchess.com"]
[Source "ChessBase"]
[SourceQuality "1"]
[TimeControl "5400+30"]

1. e4 {[%emt 0:00:03]} e5 {[%emt 0:00:06]} 2. Nf3 {[%emt 0:00:07]} Nc6 {[%emt 0:00:16]} 3. Bc4 {[%emt 0:00:08]} Nf6 {[%emt 0:00:16]} 4. Ng5 {[%emt 0:00:08]} d5 {[%emt 0:00:09]} 5. exd5 {[%emt 0:00:05]} Na5 {[%emt 0:00:19]} 6. Bb5+ {[%emt 0:00:10]} c6 {[%emt 0:00:14]} 7. dxc6 {[%emt 0:00:04]} bxc6 {[%emt 0:00:08]} 8. Ba4 {[%emt 0:00:19]} h6 {[%emt 0:00:10]} 9. Nf3 {[%emt 0:00:17]} e4 {[%emt 0:00:09]} 10. Ng1 {[%emt 0:00:26]} Bc5 {[%emt 0:00:58]} 11. h3 {[%emt 0:00:15]} Qd4 {[%emt 0:00:50]} 12. Qe2 {[%emt 0:00:41]} Qxa4 {[%emt 0:01:03]} 13. c3 {[%emt 0:00:28]} Qc4 {[%emt 0:00:57]} 14. b4 {[%emt 0:00:41]} Qxe2+ {[%emt 0:02:23]} 15. Nxe2 {[%emt 0:00:17]} Bb6 {[%emt 0:00:37]} 16. bxa5 {[%emt 0:00:16]} Bxa5 {[%emt 0:00:21]} 17. Ba3 {[%emt 0:00:20]} Rb8 {[%emt 0:01:10]} 18. O-O {[%emt 0:00:18]} Bb6 {[%emt 0:00:55]} 19. Nd4 {[%emt 0:00:17]} c5 {[%emt 0:01:29]} 20. Nb3 {[%emt 0:01:09]} Nd7 {[%emt 0:01:44]} 21. Re1 {[%emt 0:01:01]} Bb7 {[%emt 0:00:40]} 22. d4 {[%emt 0:00:52]} Rc8 {[%emt 0:04:17]} 23. N1d2 {[%emt 0:00:48]} c4 {[%emt 0:02:50]} 24. Nxe4 {[%emt 0:00:37]} Bxe4 {[%emt 0:02:45]} 25. Rxe4+ {[%emt 0:00:09]} Kd8 {[%emt 0:01:20]} 26. Nd2 {[%emt 0:00:34]} f5 {[%emt 0:02:26]} 27. Re2 {[%emt 0:00:19]} g5 {[%emt 0:03:31]} 28. Be7+ {[%emt 0:00:15]} Kc7 {[%emt 0:01:44]} 29. Nxc4 {[%emt 0:00:10]} Kb7 {[%emt 0:02:12]} 30. Nd6+ {[%emt 0:00:20]} Kc7 {[%emt 0:01:21]} 31. Nxc8 {[%emt 0:00:08]} Kxc8 {[%emt 0:00:12]} 32. a4 {[%emt 0:00:26]} Re8 {[%emt 0:01:16]} 33. Rae1 {[%emt 0:00:18]} Ba5 {[%emt 0:00:47]} 34. Bb4 {[%emt 0:01:35]} Rxe2 {[%emt 0:00:34]} 35. Rxe2 {[%emt 0:00:09]} Bxb4 {[%emt 0:00:19]} 36. cxb4 {[%emt 0:00:08]} Kc7 {[%emt 0:00:50]} 37. Re7 {[%emt 0:00:15]} h5 {[%emt 0:01:10]} 38. Rh7 {[%emt 0:00:14]} h4 {[%emt 0:00:14]} 39. Rg7 {[%emt 0:00:06]} g4 {[%emt 0:00:50]} 40. hxg4 {[%emt 0:00:16]} fxg4 {[%emt 0:00:14]} 41. Rxg4 {[%emt 0:00:07]} h3 {[%emt 0:00:31]} 42. gxh3 {[%emt 0:00:06]} a5 {[%emt 0:00:16]} 43. bxa5 {[%emt 0:00:17]} Kb7 {[%emt 0:00:15]} 44. Rg7 {[%emt 0:00:04]} Kc7 {[%emt 0:00:08]} 45. h4 {[%emt 0:00:30]} Kd8 {[%emt 0:00:07]} 46. Rxd7+ {[%emt 0:00:17]} Kxd7 {[%emt 0:00:13]} 47. h5 {[%emt 0:01:48]} Ke7 {[%emt 0:00:38]} 48. a6 {[%emt 0:00:27]} Kf7 {[%emt 0:00:25]} 49. a7 {[%emt 0:00:06]} Kg7 {[%emt 0:00:13]} 50. a8=Q {[%emt 0:00:09]} Kh6 {[%emt 0:00:27]} 51. d5 {[%emt 0:01:02]} Kg7 {[%emt 0:00:22]} 52. d6 {[%emt 0:00:08]} Kf6 {[%emt 0:00:14]} 53. h6 {[%emt 0:00:33]} Kf7 {[%emt 0:01:47]} 54. h7 {[%emt 0:00:00]} Ke6 {[%emt 0:00:23]} 55. h8=Q {[%emt 0:00:05]} Kf5 {[%emt 0:00:20]} 56. Qag8 {[%emt 0:01:09]} Ke4 {[%emt 0:01:20]} 57. Qg4+ {[%emt 0:00:14]} Kd3 {[%emt 0:00:30]} 58. Qhd4+ {[%emt 0:00:13]} Kc2 {[%emt 0:00:24]} 59. Qe2+ {[%emt 0:00:13]} Kc1 {[%emt 0:00:34]} 60. Qdd1# {[%emt 0:00:24]} 1-0

[Event "Swiss Championship U10 2022"]
[Site "Biel"]
[Date "2022.07.18"]
[Round "2.7"]
[White "Lerner, David B"]
[Black "Wilhelm, Marco"]
[Result "1/2-1/2"]
[ECO "C02"]
[WhiteElo "2125"]
[BlackElo "1332"]
[Annotator "TA"]
[PlyCount "63"]
[EventDate "2022.07.18"]
[EventType "swiss"]
[EventCountry "SUI"]
[SourceTitle "playchess.com"]
[Source "ChessBase"]
[SourceQuality "1"]
[TimeControl "5400+30"]

{[%evp 10,63,0,-44,4,-44,0,-6,0,-37,33,-36,-33,-52,-55,-53,-53,-198,-73,-73,-61,-57,-58,-70,-58,-222,-73,-333,-21,-16,-20,-18,-31,-135,-120,-107,-64,-80,-12,-25,0,0,0,0,0,0,455,437,429,408,405,0,320,0,0,0]} 1. e4 {[%emt 0:00:12][%cal Be2e4,Be4e5][%mdl 32]} e6 {[%emt 0:00:47]} 2. d4 {[%emt 0:00:47]} d5 {[%emt 0:00:00]} 3. e5 {[%emt 0:00:02]} c5 {[%emt 0:01:38]} 4. Nf3 {[%emt 0:02:18]} Nc6 {[%emt 0:01:39]} 5. Nc3 {[%emt 0:00:25]} Qb6 {[%emt 0:01:39]} 6. Bb5 {[%emt 0:02:43]} a6 {[%emt 0:00:00] C02: French: Advance Variation.} (6... cxd4 $15 {should be considered.} 7. Nxd4 a6 8. Bxc6+ bxc6) 7. Ba4 {[%emt 0:00:41]} (7. Bxc6+ $11 Qxc6 8. O-O) 7... Bd7 {[%emt 0:01:27][%cal Rc5d4]} 8. Bxc6 {[%emt 0:00:48] [#]} Qxc6 $146 {[%emt 0:02:00]} ({Predecessor:} 8... bxc6 9. O-O f6 10. Re1 Ne7 11. exf6 gxf6 12. b3 Nf5 13. Na4 Qa7 14. Nxc5 Bxc5 15. dxc5 Qxc5 {1-0 (21) Cho,Y-Varol,L Kemer 2009}) 9. Be3 {[%emt 0:02:03]} Nh6 {[%emt 0:00:00]} (9... Ne7 $15) 10. Qd2 {[%emt 0:03:20]} (10. Bxh6 $14 gxh6 11. O-O) 10... Nf5 $15 {[%emt 0:01:25]} 11. h3 {[%emt 0:00:57]} Nxe3 {[%emt 0:00:00]} 12. fxe3 {[%emt 0:00:06]} Be7 {[%emt 0:00:00]} 13. b3 {[%emt 0:00:50]} (13. Ne2 $15) 13... Qb6 {[%emt 0:00:00]} (13... cxd4 $1 $19 14. Nxd4 Qc7) 14. O-O {[%emt 0:00:34]} cxd4 {[%emt 0:00:26]} 15. exd4 {[%emt 0:01:17]} Rc8 {[%emt 0:00:35] Strongly threatening ...Bb4.} 16. Ne2 {[%emt 0:01:28]} O-O {[%emt 0:00:10]} 17. Qf4 $2 {[%emt 0:04:07]} (17. a4 $15) 17... h6 {[%emt 0:05:26]} (17... Rxc2 $19 {and Black stays clearly on top.} 18. Ng3 Bb5) 18. g4 $2 {[%emt 0:00:00][%mdl 8192]} (18. Qd2 $17) 18... Bg5 $2 {[%emt 0:04:17]} (18... Rxc2 $19 19. Rf2 Bb5) 19. Nxg5 $11 {[%emt 0:01:10]} hxg5 {[%emt 0:00:11]} 20. Qd2 {[%emt 0:03:02]} Bb5 {[%emt 0:02:40] aiming for ...Bxe2.} 21. Rad1 {[%emt 0:01:44]} (21. Rae1 $1 $15) 21... Bxe2 {[%emt 0:00:22]} 22. Qxe2 {[%emt 0:00:10]} Rc6 {[%emt 0:00:31]} 23. Rf2 {[%emt 0:00:35]} Rc7 {[%emt 0:00:39]} ({Black should play} 23... Qc7 $17) 24. h4 {[%emt 0:01:36]} gxh4 {[%emt 0:03:52]} 25. g5 $1 {[%emt 0:01:07] Hoping for Qh5.} g6 {[%emt 0:01:18] Inhibits Qh5.} 26. Qg4 {[%emt 0:03:02]} Kg7 $1 {[%emt 0:04:16]} ({But not} 26... Rfc8 27. c4 Qb4 28. Qxh4 $16) 27. Qf4 {[%emt 0:04:31] Intending Qf6+ and mate.} Rh8 $2 {[%emt 0:00:00][%mdl 8192]} (27... Qa5 $1 $11) 28. Qf6+ $1 $18 {[%emt 0:00:52]} Kg8 {[%emt 0:00:00]} (28... Kh7 $2 29. Rf4 Kg8 30. Qd8+ Kg7 31. Rxf7+ $3 {[%mdl 512]} Kxf7 32. Qxh8 $18) 29. Qd8+ {[%emt 0:01:07]} Kg7 {[%emt 0:00:00] [#]} 30. Qf6+ {[%emt 0:00:09]} (30. Rxf7+ $1 $18 {[%mdl 512]} Kxf7 31. Qxh8) 30... Kh7 $2 {[%emt 0:01:09][%mdl 8192]} (30... Kg8 $1 $11 {and Black stays safe.}) 31. Rh2 $2 {[%emt 0:00:10]} ({White must play} 31. Rf4 $18 Kg8 32. Qd8+ Kg7 {[#]} 33. Rxf7+ $3 {[%mdl 512]} Kxf7 34. Qxh8) 31... Kg8 $11 {[%emt 0:00:00]} 32. Qd8+ {[%emt 0:00:30] What a bad dream for Black.  Weighted Error Value: White=0.90/Black=0.78} 1/2-1/2